bitfinex/quotes_SOLUSD_20241113
["timestamp","ask_amount","ask_price","bid_price","bid_amount"]
[1731492764774,23.776884,206.01,206.0,0.1]
[1731492765663,4.8538,206.02,206.0,0.1]
[1731492765849,0.12549,206.01,206.0,0.1]
[1731492766945,23.902374,206.01,206.0,0.1]
[1731492767654,38.04145637,206.01,206.0,0.1]
[1731492767857,23.776884,205.99,205.98,0.1]
[1731492768063,37.91596637,205.99,205.98,0.1]
[1731492769874,23.776884,205.97,205.92,0.1]
[1731492770172,23.776884,205.97,205.86,38.6665]
[1731492770173,23.776884,205.97,205.94,0.1]
[1731492770865,23.776884,205.95,205.92,0.1]
[1731492771177,23.776884,205.95,205.88,0.1]
[1731492771178,14.13908237,205.93,205.88,0.1]
[1731492771357,23.776884,205.9,205.88,0.1]
[1731492772473,18.99598237,205.89,205.86,0.1]
[1731492772774,37.91596637,205.87,205.86,0.1]
[1731492774074,23.776884,205.86,205.84,0.1]
[1731492774258,37.91596637,205.85,205.84,0.1]
[1731492774458,42.77386637,205.85,205.84,0.1]
[1731492776174,23.776884,205.84,205.82,0.1]
[1731492776356,37.91596637,205.83,205.82,0.1]
[1731492776551,37.91596637,205.83,205.78,0.1]
[1731492776752,14.13908237,205.79,205.78,0.1]
[1731492776961,37.91596637,205.79,205.78,0.1]
[1731492777369,37.91596637,205.79,205.76,0.1]
[1731492777669,23.776884,205.78,205.76,0.1]
[1731492778674,28.636584,205.77,205.76,0.1]
[1731492779055,23.776884,205.77,205.76,0.1]
[1731492785570,162.0,205.82,205.76,0.1]
[1731492785571,166.8588,205.82,205.81,0.1]
[1731492785760,19.12247237,205.85,205.84,0.1]
[1731492786191,4.8579,205.85,205.84,0.1]
[1731492786990,14.13908237,205.85,205.84,0.1]
[1731492787168,14.26457237,205.85,205.84,0.1]
[1731492787965,38.04145637,205.85,205.84,0.1]
[1731492788982,42.89935637,205.85,205.84,0.1]
[1731492789563,28.760274,205.85,205.84,0.1]
[1731492789972,176.13908237,205.91,205.88,0.1]
[1731492790187,18.99548237,205.91,205.9,0.1]
[1731492790383,19.12097237,205.91,205.9,0.1]
[1731492791099,19.12097237,205.91,205.87,0.1]
[1731492791384,23.776884,205.87,205.85,0.1]
[1731492791590,14.13908237,205.86,205.85,0.1]
[1731492791778,37.91596637,205.86,205.85,0.1]
[1731492791976,23.776884,205.86,205.85,0.1]
[1731492792176,162.0,205.89,205.85,0.1]
[1731492792483,162.0,205.89,205.79,0.2]
[1731492792484,4.8564,205.91,205.9,0.1]
[1731492792688,18.99548237,205.91,205.9,0.1]
[1731492792893,18.99548237,205.91,205.88,0.1]
[1731492793094,14.26457237,205.89,205.88,0.1]
[1731492793276,0.12549,205.89,205.88,0.1]
[1731492793892,23.902374,205.89,205.88,0.1]
[1731492795081,28.759274,205.89,205.88,0.1]
[1731492796173,40.901674,205.89,205.84,0.1]
[1731492796472,23.776884,205.84,205.8,0.1]
[1731492796672,23.776884,205.84,205.79,0.1]
[1731492796673,23.776884,205.8,205.79,0.1]
[1731492796875,37.91596637,205.8,205.79,0.1]
[1731492797490,42.77496637,205.8,205.77,0.1]
[1731492797695,42.77496637,205.8,205.79,0.1]
[1731492797696,28.2454605,205.8,205.79,0.1]
[1731492797886,42.38454287,205.8,205.79,0.1]
[1731492799177,42.38454287,205.8,205.77,0.1]
[1731492799389,14.13908237,205.78,205.77,0.1]
[1731492799805,37.91596637,205.78,205.77,0.1]
[1731492801008,4.859,205.8,205.79,0.1]
[1731492801292,181.83956902,205.82,205.79,0.1]
[1731492801484,4.8588,205.82,205.81,0.1]
[1731492803090,28.761174,205.82,205.81,0.1]
[1731492803794,28.761174,205.82,205.76,14.13908237]
[1731492803795,4.8583,205.84,205.83,0.1]
[1731492804893,4.98379,205.84,205.83,0.1]
[1731492805707,28.760674,205.84,205.83,0.1]
[1731492806403,42.89975637,205.84,205.83,0.1]
[1731492806724,0.84149287,205.87,205.83,0.1]
[1731492806725,0.84149287,205.87,205.83,40.96798237]
[1731492806899,16.21296253,206.0,205.95,0.1]
[1731492807105,14.13908237,206.0,205.95,0.1]
[1731492807289,14.13908237,205.96,205.93,0.1]
[1731492807485,14.13908237,205.94,205.93,0.1]
[1731492807800,14.13908237,205.94,205.91,0.1]
[1731492808005,14.13908237,205.92,205.91,0.1]
[1731492808586,18.99528237,205.92,205.91,0.1]
[1731492809090,18.99528237,205.92,205.89,0.1]
[1731492809291,18.99528237,205.92,205.87,0.1]
[1731492809694,4.8562,205.92,205.91,0.1]
[1731492809889,18.99528237,205.92,205.91,0.1]
[1731492812088,18.99528237,205.92,205.87,0.1]
[1731492812290,18.99528237,205.92,205.91,0.1]
[1731492812489,18.99528237,205.92,205.89,0.1]
[1731492812688,18.99528237,205.92,205.91,0.1]
[1731492813203,18.99528237,205.92,205.87,0.1]
[1731492813399,18.99528237,205.92,205.91,0.1]
[1731492813710,18.99528237,205.92,205.87,0.1]
[1731492814239,162.0,205.95,205.94,0.1]
[1731492814514,19.12007237,205.95,205.94,0.1]
[1731492815905,19.12007237,205.95,205.92,0.1]
[1731492816112,19.12007237,205.95,205.94,0.1]
[1731492816686,19.12007237,205.95,205.89,0.1]
[1731492816893,37.91596637,205.9,205.86,0.1]
[1731492817104,14.13908237,205.87,205.86,0.1]
[1731492818301,18.99648237,205.87,205.86,0.1]
[1731492818494,18.99648237,205.87,205.77,26.6092]
[1731492818696,14.13908237,205.81,205.77,26.6092]
[1731492818900,22.64902426,205.81,205.77,26.6092]
[1731492819625,27.50782426,205.81,205.77,26.6092]
[1731492820803,22.64902426,205.83,205.77,26.6092]
[1731492821905,4.8586,205.82,205.77,26.6092]
[1731492824228,22.77451426,205.81,205.74,10.5019]
[1731492825007,22.64902426,205.8,205.74,10.5019]
[1731492825302,0.12549,205.79,205.74,10.5019]
[1731492826102,4.8595,205.78,205.74,10.5019]
[1731492827002,0.12549,205.77,205.74,10.5019]
[1731492827198,4.98529,205.77,205.74,10.5019]
[1731492827393,4.98529,205.77,205.72,25.5765]
[1731492828103,27.50732426,205.83,205.76,22.64902426]
[1731492828913,4.8588,205.81,205.76,22.64902426]
[1731492830006,4.98409,205.82,205.76,22.64902426]
[1731492832510,4.98409,205.82,205.72,337.7765]
[1731492832712,4.98409,205.82,205.75,22.64902426]
[1731492834428,4.98409,205.82,205.76,22.64902426]
[1731492838916,4.98409,205.82,205.76,14.15221722]
[1731492839119,4.98409,205.82,205.72,25.6765]
[1731492839324,14.15221722,205.8,205.72,14.15221722]
[1731492839513,17.13059,205.82,205.72,14.15221722]
[1731492839831,14.15221722,205.8,205.72,14.15221722]
[1731492840035,29.07404409,205.87,205.8,0.1]
[1731492840036,4.8576,205.87,205.8,0.1]
[1731492840233,16.9869,206.04,205.89,0.1]
[1731492840411,0.84055333,205.95,205.94,14.15221722]
[1731492840736,14.15221722,206.0,205.9,14.15221722]
[1731492840934,14.15221722,205.98,205.88,14.15221722]
[1731492841118,14.15221722,205.96,205.88,14.15221722]
[1731492841917,4.8555,205.95,205.88,14.15221722]
[1731492842420,0.12549,205.94,205.88,14.15221722]
[1731492842636,4.8555,205.95,205.88,14.15221722]
[1731492843133,0.12549,205.94,205.88,14.15221722]
[1731492843332,4.856,205.93,205.88,14.15221722]
[1731492844033,0.12549,205.92,205.88,14.15221722]
[1731492844214,0.12549,205.92,205.84,14.15221722]
[1731492844415,14.27770722,205.92,205.84,14.15221722]
[1731492845240,4.8564,205.91,205.84,14.15221722]
[1731492848061,14.15221722,205.88,205.8,24.79521722]
[1731492848350,14.15221722,205.88,205.8,24.89521722]
[1731492848733,14.15221722,205.88,205.8,24.79521722]
[1731492849043,4.8574,205.87,205.8,24.79521722]
[1731492849346,14.27770722,205.86,205.78,14.15221722]
[1731492849543,4.8574,205.87,205.82,14.15221722]
[1731492849937,4.856,205.93,205.86,14.15221722]
[1731492850131,30.8813,205.98,205.92,14.15221722]
[1731492850335,176.152217,206.03,205.94,14.15221722]
[1731492850536,14.15221722,206.0,205.92,14.15221722]
[1731492850840,14.15221722,205.94,205.86,27.6419]
[1731492851024,4.98149,205.93,205.85,14.15221722]
[1731492851641,14.15221722,205.92,205.85,14.15221722]
[1731492852641,14.15221722,205.92,205.83,14.25221722]
[1731492852846,19.00851722,205.92,205.83,14.25221722]
[1731492853352,19.00851722,205.92,205.83,14.15221722]
[1731492853526,14.15221722,205.9,205.83,14.15221722]
[1731492854748,4.8567,205.9,205.83,14.15221722]
[1731492855046,19.00891722,205.9,205.83,14.15221722]
[1731492855346,19.00891722,205.9,205.81,27.6419]
[1731492855547,19.00891722,205.9,205.82,14.15221722]
[1731492856433,19.00891722,205.9,205.77,11.2711]
[1731492856434,14.15221722,205.86,205.77,11.2711]
[1731492856633,14.15221722,205.86,205.78,14.15221722]
[1731492856835,14.15221722,205.86,205.76,41.62901722]
[1731492857128,14.15221722,205.86,205.78,14.15221722]
[1731492857540,4.8579,205.85,205.78,14.15221722]
[1731492857949,162.0,205.9,205.84,14.15221722]
[1731492858249,14.15221722,205.96,205.86,14.15221722]
[1731492858452,14.15221722,205.94,205.86,14.15221722]
[1731492858634,14.15221722,205.9,205.79,0.2]
[1731492858828,14.15221722,205.9,205.81,14.15221722]
[1731492859060,14.15221722,205.9,205.83,14.15221722]
[1731492859930,4.8569,205.89,205.83,14.15221722]
[1731492860247,4.8569,205.89,205.81,14.15221722]
[1731492860852,14.15221722,205.84,205.77,14.15221722]
[1731492861030,14.15221722,205.86,205.77,14.15221722]
[1731492862629,4.8579,205.85,205.77,14.15221722]
[1731492862834,14.15221722,205.82,205.75,14.15221722]
[1731492864234,19.01091722,205.82,205.75,14.15221722]
[1731492864652,4.8587,205.82,205.75,14.15221722]
[1731492865337,4.98379,205.83,205.75,14.15221722]
[1731492868344,14.15221722,205.84,205.77,14.15221722]
[1731492868854,0.12549,205.84,205.77,14.15221722]
[1731492869245,19.00941722,205.88,205.81,14.15221722]
[1731492869449,0.12549,205.87,205.79,14.15221722]
[1731492869646,4.8576,205.86,205.79,14.15221722]
[1731492869837,0.12549,205.85,205.79,14.15221722]
[1731492870034,0.12549,205.85,205.77,14.15221722]
[1731492870656,14.15221722,205.84,205.77,14.15221722]
[1731492871359,14.15221722,205.84,205.76,0.2]
[1731492871661,14.15221722,205.84,205.77,14.15221722]
[1731492872560,4.858,205.85,205.77,14.15221722]
[1731492872973,14.15221722,205.84,205.76,0.1]
[1731492873261,14.15221722,205.84,205.76,14.25221722]
[1731492873564,14.15221722,205.84,205.74,0.2]
[1731492873869,14.15221722,205.84,205.76,14.15221722]
[1731492874235,14.15221722,205.8,205.72,11.0191]
[1731492874648,14.15221722,205.82,205.73,14.25221722]
[1731492875048,14.15221722,205.84,205.75,14.15221722]
[1731492875457,0.12549,205.83,205.75,14.15221722]
[1731492875847,0.12549,205.83,205.73,0.1]
[1731492876050,0.12549,205.83,205.75,14.15221722]
[1731492876652,0.12549,205.81,205.73,14.15221722]
[1731492877474,7.55395723,205.88,205.8,14.15221722]
[1731492877645,27.2502,205.89,205.72,10.9191]
[1731492877646,27.2502,205.89,205.82,14.15221722]
[1731492878549,27.2502,205.89,205.84,14.15221722]
[1731492878964,4.8563,205.92,205.84,14.15221722]
[1731492879351,14.15221722,205.89,205.8,14.15221722]
[1731492880068,14.15221722,205.91,205.82,14.15221722]
[1731492880452,0.12549,205.9,205.82,14.15221722]
[1731492881570,41.90641722,205.95,205.88,14.15221722]
[1731492881784,27.7542,205.95,205.88,14.15221722]
[1731492881959,0.12549,205.96,205.88,14.15221722]
[1731492882150,4.855,205.98,205.9,14.15221722]
[1731492883866,4.98059,205.97,205.9,14.15221722]
[1731492885571,14.15221722,205.99,205.9,14.15221722]
[1731492885775,19.00691722,205.99,205.92,14.15221722]
[1731492886753,0.84102704,206.02,205.94,14.15221722]
[1731492886961,0.84102704,206.02,205.93,0.1]
[1731492886962,26.5863,206.07,205.98,14.15221722]
[1731492887255,162.84039517,206.1,206.02,14.15221722]
[1731492887462,31.56339,206.12,206.06,14.15221722]
[1731492887760,4.97709,206.12,206.06,14.15221722]
[1731492887967,4.97709,206.12,206.04,14.15221722]
[1731492888363,14.15221722,206.11,206.04,14.15221722]
[1731492888564,14.15221722,206.09,206.02,326.15221722]
[1731492888764,14.15221722,206.07,205.98,14.15221722]
[1731492889163,14.15221722,206.07,205.97,0.1]
[1731492889365,14.15221722,206.07,205.98,14.15221722]
[1731492889964,14.15221722,206.01,205.92,0.1]
[1731492890265,14.15221722,206.01,205.92,14.25221722]
[1731492890969,19.00631722,206.01,205.92,14.25221722]
[1731492891271,14.15221722,206.01,205.94,14.15221722]
[1731492891969,14.15221722,206.03,205.96,14.15221722]
[1731492892157,14.15221722,206.05,205.98,14.15221722]
[1731492894865,14.15221722,206.05,205.97,0.1]
[1731492895177,14.15221722,206.05,205.97,312.1]
[1731492897285,14.15221722,206.07,205.98,14.15221722]
[1731492897572,14.15221722,206.07,206.0,14.15221722]
[1731492897770,200.78529,206.12,205.97,312.1]
[1731492897771,14.15221722,206.11,206.02,14.15221722]
[1731492897974,14.15221722,206.11,206.04,14.15221722]
[1731492898474,28.37659,206.12,206.04,14.15221722]
[1731492898779,0.12549,206.12,206.04,14.15221722]
[1731492899372,0.12549,206.12,206.04,14.25221722]
[1731492900577,14.15221722,206.09,206.02,14.15221722]
[1731492901268,14.15221722,206.07,205.98,326.15221722]
[1731492901471,14.15221722,206.07,205.99,0.1]
[1731492901667,14.15221722,206.07,205.98,326.15221722]
[1731492902170,14.15221722,206.07,205.98,14.15221722]
[1731492902366,14.15221722,206.05,205.96,14.35221722]
[1731492902568,19.00541722,206.05,205.96,14.35221722]
[1731492902757,19.00461722,206.09,206.0,14.15221722]
[1731492902963,19.00391722,206.11,206.02,14.15221722]
[1731492903291,19.00391722,206.11,206.02,14.25221722]
[1731492903586,14.15221722,206.11,206.04,14.15221722]
[1731492903885,14.15221722,206.11,206.02,14.25221722]
[1731492905062,19.00401722,206.11,206.02,326.25221722]
[1731492905787,19.00401722,206.11,206.02,14.25221722]
[1731492906076,0.12549,206.12,206.06,14.15221722]
[1731492906871,0.12549,206.12,206.04,14.15221722]
[1731492907066,4.97699,206.12,206.04,14.25221722]
[1731492907576,0.12549,206.12,206.08,14.15221722]
[1731492907881,0.12549,206.12,206.11,23.776884]
[1731492908193,0.12549,206.12,206.1,14.15221722]
[1731492908490,14.27770722,206.12,206.04,14.25221722]
[1731492908675,14.15221722,206.1,206.04,0.1]
[1731492909577,19.12930722,206.12,206.04,14.25221722]
[1731492911667,14.27770722,206.12,206.04,14.25221722]
[1731492911975,14.27770722,206.12,206.04,14.35221722]
[1731492912188,14.27770722,206.12,206.04,326.35221722]
[1731492912665,0.12549,206.12,206.06,14.15221722]
[1731492912867,0.12549,206.12,206.08,14.15221722]
[1731492913188,0.12549,206.12,206.1,14.15221722]
[1731492913575,0.12549,206.12,206.11,23.776884]
[1731492913883,0.12549,206.12,206.11,34.124384]
[1731492914081,0.12549,206.12,206.11,54.124384]
[1731492914466,0.12549,206.12,206.11,10.3475]
[1731492914675,0.12549,206.12,206.1,14.25221722]
[1731492916586,0.12549,206.12,206.08,0.1]
[1731492916788,0.12549,206.12,206.08,14.25221722]
[1731492916975,0.12549,206.12,206.06,24.49971722]
[1731492917292,0.12549,206.12,206.06,24.59971722]
[1731492917475,0.12549,206.12,206.06,24.49971722]
[1731492917674,0.12549,206.12,206.06,24.59971722]
[1731492917998,0.12549,206.12,206.06,24.49971722]
[1731492918189,0.12549,206.12,206.06,14.15221722]
[1731492918378,19.12930722,206.12,206.04,14.25221722]
[1731492918690,14.27770722,206.12,206.04,14.25221722]
[1731492919211,14.15221722,206.08,205.99,0.1]
[1731492919487,17.10599,206.12,205.99,0.1]
[1731492919488,14.15221722,206.09,206.01,14.15221722]
[1731492919874,14.15221722,206.11,206.03,14.15221722]
[1731492920066,0.12549,206.12,206.07,14.25221722]
[1731492920270,0.12549,206.12,206.11,14.15221722]
[1731492920475,0.12549,206.12,206.11,34.25221722]
[1731492920687,0.12549,206.12,206.11,34.37770722]
[1731492920892,14.15221722,206.27,206.18,0.1]
[1731492921097,14.15221722,206.27,206.2,14.15221722]
[1731492922200,14.15221722,206.25,206.16,14.15221722]
[1731492922382,14.15221722,206.25,206.17,23.776884]
[1731492922589,14.15221722,206.23,206.14,14.25221722]
[1731492922900,14.15221722,206.17,206.08,0.2]
[1731492923198,14.15221722,206.09,206.01,14.25221722]
[1731492923493,14.15221722,206.13,206.05,14.15221722]
[1731492923997,14.15221722,206.13,206.05,14.35221722]
[1731492924191,14.15221722,206.13,206.05,14.25221722]
[1731492924399,14.15221722,206.13,206.05,14.15221722]
[1731492924890,22.57975835,206.12,206.04,22.57975835]
[1731492925391,22.57975835,206.14,206.06,22.57975835]
[1731492925603,22.57975835,206.14,206.07,23.776884]
[1731492926280,32.5435,206.16,206.08,22.57975835]
[1731492926281,22.57975835,206.16,206.08,22.57975835]
[1731492926478,22.57975835,206.18,206.1,22.57975835]
[1731492926823,26.4211,206.22,206.17,312.0]
[1731492926824,22.57975835,206.2,206.17,312.0]
[1731492927000,49.00085835,206.22,206.17,312.0]
[1731492927210,49.00085835,206.22,206.14,22.57975835]
[1731492927573,53.85005835,206.22,206.14,22.57975835]
[1731492927794,22.57975835,206.22,206.14,22.57975835]
[1731492928293,27.42855835,206.24,206.16,22.57975835]
[1731492928797,22.57975835,206.24,206.16,22.57975835]
[1731492929194,10.7476,206.33,206.2,22.57975835]
[1731492929403,23.06556185,206.32,206.24,22.57975835]
[1731492929696,23.06556185,206.32,206.26,22.57975835]
[1731492929697,0.4858035,206.32,206.26,22.57975835]
[1731492930101,0.4858035,206.32,206.31,312.0]
[1731492934385,0.4858035,206.32,206.31,356.102374]
[1731492934708,22.57975835,206.48,206.4,22.57975835]
[1731492934888,22.57975835,206.46,206.38,22.57975835]
[1731492935099,22.57975835,206.43,206.36,22.57975835]
[1731492935397,39.52885835,206.5,206.38,22.57975835]
[1731492935398,22.57975835,206.47,206.38,22.57975835]
[1731492936306,178.9491,206.5,206.38,22.57975835]
[1731492936307,22.57975835,206.45,206.38,22.57975835]
[1731492937388,27.42365835,206.45,206.38,22.57975835]
[1731492937580,4.8439,206.45,206.38,22.57975835]
[1731492937779,4.8439,206.45,206.44,312.0]
[1731492938704,22.57975835,206.49,206.44,312.0]
[1731492938910,4.8429,206.49,206.44,22.57975835]
[1731492939198,0.4858035,206.53,206.44,22.57975835]
[1731492939199,23.06556185,206.53,206.44,22.57975835]
[1731492939403,27.90756185,206.53,206.46,22.57975835]
[1731492939796,5.3278035,206.53,206.46,22.57975835]
[1731492940519,22.57975835,206.51,206.43,22.57975835]
[1731492940708,22.57975835,206.47,206.39,22.57975835]
[1731492940881,22.57975835,206.43,206.35,22.57975835]
[1731492941688,22.57975835,206.41,206.33,22.57975835]
[1731492941883,22.57975835,206.41,206.37,312.0]
[1731492942596,27.42455835,206.41,206.37,312.0]
[1731492943090,22.57975835,206.38,206.32,0.12549]
[1731492944800,22.57975835,206.36,206.32,0.12549]
[1731492945300,22.57975835,206.37,206.32,0.12549]
[1731492945496,22.57975835,206.33,206.32,0.12549]
[1731492945810,16.9548,206.43,206.32,0.12549]
[1731492945811,22.57975835,206.37,206.32,0.12549]
[1731492945996,22.57975835,206.37,206.34,312.0]
[1731492946788,22.57975835,206.36,206.34,312.0]
[1731492947007,22.57975835,206.35,206.34,312.0]
[1731492947310,22.70524835,206.35,206.34,312.0]
[1731492947512,0.12549,206.34,206.32,0.12549]
[1731492947813,22.70524835,206.33,206.32,0.12549]
[1731492948909,27.55184835,206.33,206.32,0.12549]
[1731492950999,22.57975835,206.33,206.32,0.12549]
[1731492951512,22.70524835,206.33,206.32,0.12549]
[1731492951817,22.57975835,206.33,206.32,0.12549]
[1731492953417,22.57975835,206.37,206.32,0.12549]
[1731492953617,27.42485835,206.39,206.32,0.12549]
[1731492953802,22.57975835,206.41,206.33,22.57975835]
[1731492954014,22.57975835,206.43,206.4,312.0]
[1731492954407,162.0,206.51,206.4,312.0]
[1731492954408,22.57975835,206.47,206.4,312.0]
[1731492954709,22.57975835,206.49,206.41,22.57975835]
[1731492955524,27.42265835,206.49,206.41,22.57975835]
[1731492955717,22.57975835,206.49,206.41,22.57975835]
[1731492956616,22.57975835,206.51,206.42,23.776884]
[1731492956839,22.57975835,206.47,206.4,23.776884]
[1731492957523,4.8423,206.52,206.46,312.0]
[1731492957524,22.57975835,206.49,206.46,312.0]
[1731492958208,22.57975835,206.49,206.4,23.776884]
[1731492958596,27.42255835,206.49,206.41,22.57975835]
[1731492958800,27.42215835,206.51,206.41,22.57975835]
[1731492959025,27.42215835,206.51,206.4,23.776884]
[1731492959026,22.57975835,206.51,206.43,22.57975835]
[1731492959323,27.42215835,206.51,206.43,22.57975835]
[1731492960020,22.57975835,206.51,206.43,22.57975835]
[1731492960207,22.57975835,206.51,206.44,23.776884]
[1731492960408,5.3278035,206.53,206.44,23.776884]
[1731492960409,27.90756185,206.53,206.44,23.776884]
[1731492961108,0.4858035,206.53,206.52,312.0]
[1731492961525,0.4858035,206.53,206.52,335.776884]
[1731492961725,0.4858035,206.53,206.52,355.876884]
[1731492962232,0.4858035,206.53,206.52,356.002374]
[1731492962535,22.57975835,206.69,206.56,0.2]
[1731492962824,4.838,206.7,206.62,22.57975835]
[1731492963018,22.57975835,206.69,206.6,22.57975835]
[1731492963917,27.41795835,206.69,206.6,22.57975835]
[1731492964431,27.41795835,206.69,206.55,20.0]
[1731492964432,22.57975835,206.67,206.58,22.57975835]
[1731492965003,22.57975835,206.65,206.56,22.57975835]
[1731492966026,27.41895835,206.65,206.58,22.57975835]
[1731492966333,22.57975835,206.67,206.59,23.776884]
[1731492966625,22.57975835,206.67,206.6,22.57975835]
[1731492968312,27.41795835,206.69,206.6,22.57975835]
[1731492969130,22.57975835,206.65,206.58,22.57975835]
[1731492969308,22.57975835,206.65,206.54,0.1]
[1731492969309,22.57975835,206.65,206.56,22.57975835]
[1731492969626,22.57975835,206.63,206.56,22.57975835]
[1731492970726,27.41905835,206.65,206.56,22.57975835]
[1731492971109,27.41905835,206.65,206.52,10.9248]
[1731492971110,27.41845835,206.67,206.6,22.57975835]
[1731492971508,22.57975835,206.69,206.6,22.57975835]
[1731492972034,22.57975835,206.67,206.6,22.57975835]
[1731492972214,22.57975835,206.65,206.57,23.776884]
[1731492972421,22.57975835,206.67,206.58,22.57975835]
[1731492972727,27.41845835,206.67,206.58,22.57975835]
[1731492973435,22.57975835,206.67,206.6,22.57975835]
[1731492973933,22.57975835,206.69,206.62,22.57975835]
[1731492974514,22.57975835,206.71,206.64,22.57975835]
[1731492974717,23.06556185,206.73,206.66,22.57975835]
[1731492975428,0.4858035,206.73,206.68,22.57975835]
[1731492975613,0.4858035,206.73,206.7,22.57975835]
[1731492976137,0.4858035,206.73,206.68,22.57975835]
[1731492976536,0.4858035,206.73,206.7,22.57975835]
[1731492976837,0.4858035,206.73,206.72,22.57975835]
[1731492977833,0.4858035,206.73,206.72,66.58213235]
[1731492978736,0.4858035,206.73,206.72,378.58213235]
[1731492979121,0.4858035,206.73,206.72,378.35664235]
[1731492979323,0.4858035,206.73,206.72,378.45664235]
[1731492979519,0.4858035,206.73,206.72,378.58213235]
[1731492983732,0.4858035,206.73,206.72,378.48213235]
[1731492984436,0.4858035,206.73,206.72,312.0]
[1731492985548,0.4858035,206.73,206.72,334.57975835]
[1731492986130,0.4858035,206.73,206.72,378.35664235]
[1731492987342,0.4858035,206.73,206.72,334.57975835]
[1731492988427,0.4858035,206.73,206.72,354.57975835]
[1731492990437,0.4858035,206.73,206.72,378.45664235]
[1731492991047,0.4858035,206.73,206.72,378.55664235]
[1731492991244,0.4858035,206.73,206.72,378.68213235]
[1731492991831,0.4858035,206.73,206.72,378.55664235]
[1731492992038,0.4858035,206.73,206.72,378.68213235]
[1731492993153,0.4858035,206.73,206.72,378.58213235]
[1731492993333,0.4858035,206.73,206.72,378.68213235]
[1731492996047,0.4858035,206.73,206.72,405.04033235]
[1731492996249,0.4858035,206.73,206.72,404.94033235]
[1731492996446,0.4858035,206.73,206.72,405.04033235]
[1731492997238,0.4858035,206.73,206.72,404.84033235]
[1731492997444,0.4858035,206.73,206.72,404.94033235]
[1731492997748,0.4858035,206.73,206.72,404.71484235]
[1731492997947,0.4858035,206.73,206.72,378.35664235]
[1731492998128,0.4858035,206.73,206.72,358.35664235]
[1731492998333,0.4858035,206.73,206.72,312.0]
[1731492998848,0.4858035,206.73,206.72,334.57975835]
[1731492999742,0.4858035,206.73,206.72,354.57975835]
[1731493000551,0.4858035,206.73,206.72,378.35664235]
[1731493002350,0.4858035,206.73,206.72,378.58213235]
[1731493005341,0.4858035,206.73,206.72,378.35664235]
[1731493006260,0.4858035,206.73,206.72,334.57975835]
[1731493006561,0.4858035,206.73,206.72,312.0]
[1731493007054,0.4858035,206.73,206.66,22.57975835]
[1731493007055,27.90276185,206.73,206.66,22.57975835]
[1731493007232,22.57975835,206.71,206.62,22.57975835]
[1731493007653,22.57975835,206.69,206.6,22.57975835]
[1731493007839,22.57975835,206.67,206.58,33.38285835]
[1731493008053,22.57975835,206.69,206.6,22.57975835]
[1731493008762,22.57975835,206.67,206.58,22.57975835]
[1731493008936,22.57975835,206.61,206.54,22.57975835]
[1731493009133,26.9798,206.68,206.54,22.57975835]
[1731493009337,22.57975835,206.65,206.58,22.57975835]
[1731493010142,27.41885835,206.65,206.59,312.0]
[1731493010348,22.57975835,206.65,206.59,312.0]
[1731493010737,22.57975835,206.65,206.52,22.57975835]
[1731493010738,22.57975835,206.61,206.52,22.57975835]
[1731493010939,16.0378,206.65,206.52,22.57975835]
[1731493011138,16.0378,206.65,206.58,22.57975835]
[1731493011139,11.1987,206.65,206.58,22.57975835]
[1731493011359,16.0378,206.65,206.56,22.57975835]
[1731493011555,22.57975835,206.6,206.52,22.57975835]
[1731493011759,22.57975835,206.6,206.5,22.57975835]
[1731493011937,22.57975835,206.6,206.52,22.57975835]
[1731493012340,22.57975835,206.6,206.48,0.1]
[1731493012341,4.8393,206.64,206.56,22.57975835]
[1731493013354,33.77845835,206.65,206.58,22.57975835]
[1731493013765,38.61755835,206.65,206.58,334.57975835]
[1731493013965,38.61755835,206.65,206.58,312.0]
[1731493014457,38.61755835,206.65,206.57,23.776884]
[1731493015361,38.61755835,206.65,206.56,22.57975835]
[1731493015563,22.57975835,206.61,206.55,20.0]
[1731493015771,22.57975835,206.61,206.33,24.93388783]
[1731493015772,22.57975835,206.61,206.53,23.776884]
[1731493016059,22.57975835,206.63,206.54,22.57975835]
[1731493016265,38.61755835,206.65,206.56,22.57975835]
[1731493016772,38.61755835,206.65,206.53,23.776884]
[1731493016773,22.57975835,206.59,206.53,23.776884]
[1731493017055,16.0378,206.65,206.53,23.776884]